bitfinex/quotes_ETHUSD_20260225
["timestamp","ask_amount","ask_price","bid_price","bid_amount"]
[1772025321235,6.502,1959.1,1958.7,0.05032783]
[1772025321603,6.502,1959.1,1958.5,1.32681392]
[1772025321750,6.502,1959.1,1958.5,1.27648609]
[1772025322350,6.502,1959.1,1958.4,3.57087443]
[1772025322877,1.2761613,1959.0,1958.4,3.52054146]
[1772025323181,6.5,1958.9,1958.4,2.244]
[1772025324065,6.5,1958.9,1958.3,1.32795113]
[1772025325189,6.5,1958.7,1958.3,0.001]
[1772025325485,6.5,1958.7,1958.3,1.27761446]
[1772025325681,6.5,1958.9,1958.3,1.27761446]
[1772025329356,0.002,1959.0,1958.6,2.6104703]
[1772025329584,0.002,1959.0,1958.7,0.05032526]
[1772025329884,0.002,1959.0,1958.4,0.05032526]
[1772025330259,6.502,1959.0,1958.4,0.05032526]
[1772025331275,0.002,1959.0,1958.6,2.6104703]
[1772025331582,0.002,1959.0,1958.7,1.32667431]
[1772025331957,6.502,1959.0,1958.7,1.27635676]
[1772025332159,6.502,1959.0,1958.6,1.27636978]
[1772025333185,0.002,1959.0,1958.6,1.27636978]
[1772025335201,6.45182156,1959.3,1958.9,0.10035687]
[1772025335492,0.002,1959.3,1959.2,1.79765895]
[1772025335789,0.002,1959.3,1959.2,1.27603103]
[1772025335969,0.002,1959.4,1959.2,1.79765895]
[1772025336289,0.002,1959.4,1959.1,1.89802778]
[1772025336496,6.44982156,1959.1,1958.8,1.27628504]
[1772025336664,6.04416623,1959.1,1958.7,1.27631093]
[1772025337060,6.04616623,1959.1,1958.7,1.27631093]
[1772025337456,6.04616623,1959.1,1958.6,5.10656855]
[1772025337662,6.04616623,1959.1,1958.6,1.27742193]
[1772025339295,6.4112791,1959.1,1958.6,1.27742193]
[1772025341973,6.4112791,1959.1,1958.5,13.28720396]
[1772025341974,7.73798481,1959.1,1958.5,0.001]
[1772025342579,7.73798481,1959.1,1958.3,1.27757985]
[1772025342795,7.73798481,1959.1,1958.3,0.001]
[1772025348773,7.73798481,1959.1,1958.4,0.001]
[1772025348975,6.4112791,1958.9,1958.4,0.001]
[1772025349290,6.4618652,1958.9,1958.4,0.001]
[1772025349900,6.4618652,1958.9,1958.2,0.001]
[1772025352380,6.4112791,1958.7,1958.2,0.001]
[1772025352582,6.4112791,1958.5,1958.2,0.001]
[1772025353103,6.4112791,1958.5,1958.0,0.001]
[1772025354907,6.4112791,1958.3,1958.0,0.001]
[1772025355708,5.10604687,1958.5,1958.0,6.25245476]
[1772025355709,7.71224049,1958.5,1958.0,6.25245476]
[1772025355914,7.76282659,1958.5,1958.0,6.25245476]
[1772025356728,6.43570273,1958.5,1958.0,6.25245476]
[1772025356884,6.43570273,1958.5,1958.1,7.52820262]
[1772025357200,7.71209111,1958.7,1958.1,7.52820262]
[1772025358403,6.43570273,1958.7,1958.1,7.52820262]
[1772025358904,3.56192237,1958.8,1958.1,7.52820262]
[1772025359129,2.2855861,1958.8,1958.1,7.52820262]
[1772025359420,7.71196645,1958.9,1958.1,7.52820262]
[1772025359421,7.711933,1958.9,1958.2,6.25145476]
[1772025359622,6.43570273,1958.9,1958.2,6.25145476]
[1772025360000,7.71192952,1958.9,1958.2,6.25145476]
[1772025360198,7.76251562,1958.9,1958.2,6.25145476]
[1772025360424,7.71192952,1958.9,1958.2,6.25145476]
[1772025360597,7.76251562,1958.9,1958.2,6.25145476]
[1772025361195,0.002,1959.0,1958.4,6.25145476]
[1772025361819,0.002,1959.1,1958.4,6.25145476]
[1772025362029,0.002,1959.1,1958.7,6.25145476]
[1772025362523,0.002,1958.9,1958.7,6.25145476]
[1772025362710,0.002,1959.3,1958.8,6.25145476]
[1772025363327,0.002,1959.7,1959.1,6.25145476]
[1772025363499,0.002,1960.4,1959.5,6.25145476]
[1772025363500,7.71299839,1960.4,1959.5,6.25145476]
[1772025363690,6.43570273,1960.2,1959.5,6.25145476]
[1772025364097,0.006,1960.1,1959.5,6.25145476]
[1772025364619,6.44170273,1960.1,1959.5,6.25145476]
[1772025365586,0.006,1960.0,1959.6,7.52722532]
[1772025365831,6.44170273,1960.3,1959.6,7.52722532]
[1772025366031,0.006,1960.2,1959.6,7.52722532]
[1772025366724,1.27729566,1960.4,1959.6,1.27577056]
[1772025366725,6.44170273,1960.1,1959.6,1.27577056]
[1772025366943,6.43570273,1960.1,1959.6,1.27577056]
[1772025368251,0.006,1960.3,1959.6,6.25145476]
[1772025368252,0.006,1960.0,1959.6,6.25145476]
[1772025368414,0.006,1960.2,1959.6,6.25145476]
[1772025368805,0.006,1960.2,1959.2,5.10334268]
[1772025368806,6.44170273,1960.1,1959.2,7.52742066]
[1772025369007,6.44170273,1960.1,1959.2,7.52743757]
[1772025369212,6.43570273,1959.9,1959.0,7.57866251]
[1772025370227,0.006,1959.8,1959.0,7.57866251]
[1772025370398,0.006,1959.8,1959.3,6.25145476]
[1772025370598,0.006,1959.8,1959.3,6.30249339]
[1772025371203,0.006,1959.7,1959.3,6.30249339]
[1772025371415,0.006,1959.9,1959.3,6.30249339]
[1772025371618,0.006,1959.9,1959.3,6.25145476]
[1772025373441,0.006,1959.9,1959.4,7.52735554]
[1772025373800,6.43570273,1960.3,1959.8,6.25145476]
[1772025374533,0.002,1960.4,1959.8,6.25145476]
[1772025375428,0.002,1960.2,1959.8,6.25145476]
[1772025375741,0.002,1960.2,1959.9,7.52703004]
[1772025376514,0.002,1960.4,1960.1,6.25145476]
[1772025377711,0.002,1960.4,1960.2,1.27538006]
[1772025379536,6.43770273,1960.4,1959.7,7.52716022]
[1772025379831,7.71301015,1960.4,1959.7,7.52716022]
[1772025380708,6.43770273,1960.4,1959.7,7.52716022]
[1772025380915,7.71295853,1960.4,1959.7,7.52716022]
[1772025381812,7.76354463,1960.4,1959.7,7.52716022]
[1772025382017,7.71295853,1960.4,1959.7,1.27570546]
[1772025383535,7.71295853,1960.4,1959.6,7.52717025]
[1772025383735,7.71295853,1960.4,1959.6,11.30717025]
[1772025384514,7.71295853,1960.4,1959.7,6.25145476]
[1772025385519,0.002,1960.4,1959.7,6.25145476]
[1772025386340,0.002,1960.4,1959.9,5.97263024]
[1772025387747,0.002,1960.3,1959.9,5.97263024]
[1772025388242,0.002,1960.3,1959.8,0.001]
[1772025388243,5.85519305,1960.3,1959.8,0.001]
[1772025388827,5.85519305,1960.3,1959.8,5.97363024]
[1772025389951,0.002,1960.3,1959.8,5.97363024]
[1772025391548,0.002,1960.3,1959.9,1.27557528]
[1772025392318,0.002,1960.3,1960.0,5.97066372]
[1772025393645,0.002,1960.4,1960.1,7.24610885]
[1772025393824,0.002,1960.5,1960.2,5.97066372]
[1772025395024,0.002,1960.7,1960.3,5.97066372]
[1772025395229,6.01594622,1961.0,1960.3,5.97066372]
[1772025395427,7.29068252,1961.2,1960.6,5.97066372]
[1772025395646,7.34126862,1961.2,1960.5,1.2751849]
[1772025395829,7.34126862,1961.2,1960.3,1.27528918]
[1772025396238,7.34126862,1961.2,1960.3,7.2459529]
[1772025397939,1.27667462,1961.3,1960.3,7.2459529]
[1772025398147,0.002,1961.3,1960.3,7.2459529]
[1772025398367,0.002,1961.3,1960.8,5.97066372]
[1772025398944,0.002,1961.4,1961.1,5.97066372]
[1772025399280,0.002,1961.4,1960.8,5.97066372]
[1772025399765,0.002,1961.4,1960.9,1.27492477]
[1772025399933,0.002,1961.4,1960.9,7.24558849]
[1772025400269,0.002,1961.1,1960.8,8.573682]
[1772025400954,0.002,1961.1,1960.6,5.97066372]
[1772025401149,0.002,1961.1,1960.6,8.573682]
[1772025401356,0.002,1961.1,1960.7,5.97066372]
[1772025401948,0.002,1961.1,1960.9,5.97066372]
[1772025402258,0.002,1961.4,1961.1,5.97066372]
[1772025403459,0.002,1961.5,1961.2,8.573682]
[1772025404044,0.002,1961.5,1961.2,7.2453411]
[1772025406349,0.002,1961.5,1961.2,5.97066372]
[1772025406545,0.002,1961.5,1961.1,1.27474272]
[1772025407439,6.01594622,1961.4,1960.6,5.97066372]
[1772025407641,6.01594622,1961.4,1960.8,5.97066372]
[1772025408178,0.002,1961.5,1961.1,2.60301828]
[1772025408348,0.002,1961.5,1961.0,8.23666372]
[1772025408692,6.01794622,1961.5,1961.0,2.266]
[1772025408989,6.01794622,1961.5,1960.5,5.10069796]
[1772025408990,6.01594622,1961.3,1960.5,7.24580062]
[1772025409145,6.01594622,1961.3,1960.4,3.54221951]
[1772025409342,6.01594622,1961.1,1960.4,0.001]
[1772025410769,6.01594622,1960.9,1960.4,0.001]
[1772025412749,6.01594622,1960.7,1960.3,0.001]
[1772025413271,6.01594622,1960.7,1960.1,0.001]
[1772025414745,6.01594622,1960.7,1959.7,0.001]
[1772025414746,6.01594622,1960.5,1959.7,0.001]
[1772025415074,3.87813814,1960.6,1959.7,0.001]
[1772025415075,6.01594622,1960.3,1959.7,0.001]
[1772025416378,6.01594622,1960.3,1959.7,1.27669593]
[1772025416570,6.01594622,1960.3,1959.7,0.001]
[1772025417580,6.42730302,1960.1,1959.7,0.001]
[1772025419577,1.2755102,1960.0,1959.7,0.001]
[1772025419755,7.70281322,1960.0,1959.7,0.001]
[1772025420097,6.42730302,1960.3,1959.7,0.001]
[1772025420258,6.42730302,1960.3,1959.7,6.09653515]
[1772025420581,7.7025149,1960.5,1959.9,6.09553515]
[1772025420752,6.42730302,1960.5,1959.9,6.09553515]
[1772025421353,1.27515906,1960.6,1959.9,6.09553515]
[1772025421673,1.27515906,1960.6,1960.0,1.2755102]
[1772025422182,7.70246208,1960.6,1960.0,1.2755102]
[1772025422353,7.70246208,1960.6,1960.0,9.97406363]
[1772025422683,7.70233975,1960.8,1960.1,6.09553515]
[1772025422934,7.75292585,1960.8,1960.1,6.09553515]
[1772025424486,7.75292585,1960.8,1960.2,1.27538006]
[1772025424787,7.75288921,1960.8,1960.2,1.27538006]
[1772025425081,6.47788912,1960.8,1960.2,1.27538006]
[1772025425287,7.7022943,1960.8,1960.2,9.97493349]
[1772025425454,7.7042943,1960.8,1960.2,9.97493349]
[1772025425983,7.7548804,1960.8,1960.2,0.001]
[1772025426149,7.7548804,1960.8,1960.0,0.001]
[1772025427912,7.7548804,1960.8,1959.7,0.001]
[1772025428092,6.42730302,1960.2,1959.7,2.60301828]
[1772025428286,6.42730302,1960.2,1959.5,1.27683229]
[1772025428287,6.42730302,1960.2,1959.6,8.69855343]
[1772025428593,1.32757738,1960.8,1959.5,1.27683229]
[1772025428594,6.42730302,1960.7,1959.8,2.60301828]
[1772025428764,7.70248792,1960.5,1959.6,2.60301828]
[1772025428964,6.42730302,1960.3,1959.5,6.09653515]
[1772025429166,6.42730302,1960.2,1959.5,7.37236877]
[1772025429364,0.0505861,1960.4,1959.6,8.69855343]
[1772025429863,6.47788912,1960.4,1959.6,8.69855343]
[1772025430263,6.47788912,1960.4,1959.6,2.60301828]
[1772025430497,6.47788912,1960.4,1959.7,6.09553515]
[1772025431403,1.275315,1960.3,1959.7,7.37119624]
[1772025431763,1.3259011,1960.3,1959.7,7.37119624]
[1772025432775,7.75320412,1960.3,1959.7,7.37119624]
[1772025433604,7.75320412,1960.3,1959.7,1.27566109]
[1772025433779,7.75320412,1960.3,1959.6,3.8787397]
[1772025437582,7.75320412,1960.3,1959.5,7.37233621]
[1772025437790,7.75320412,1960.3,1959.5,0.001]
[1772025438121,7.75320412,1960.3,1959.5,1.27682101]
[1772025438289,7.75320412,1960.3,1959.5,0.001]
[1772025438477,7.75320412,1960.3,1959.7,0.001]
[1772025440094,2.60301828,1960.2,1959.5,0.001]
[1772025440434,6.42730302,1959.9,1959.5,0.001]
[1772025440620,8.9299366,1959.7,1959.0,0.001]
[1772025440820,2.60301828,1959.6,1959.0,0.001]
[1772025440986,8.9299366,1959.7,1959.0,0.001]
[1772025441990,6.42730302,1959.6,1959.0,0.001]
[1772025442394,6.42730302,1959.4,1959.0,0.001]
[1772025443023,1.27583567,1959.5,1959.0,6.09653515]
[1772025444701,7.70313869,1959.5,1959.0,6.09653515]
[1772025445017,7.70313869,1959.5,1959.0,0.001]
[1772025445445,1.27580527,1959.6,1959.0,7.48826338]
[1772025445625,6.33066575,1959.6,1959.0,7.48826338]
[1772025447328,7.60646278,1959.6,1959.0,7.48826338]
[1772025447617,1.27574521,1959.7,1959.1,6.21112012]
[1772025448027,1.32633131,1959.7,1959.1,6.21112012]
[1772025449295,7.70933822,1959.7,1959.1,6.21112012]
[1772025449496,7.70933822,1959.7,1959.1,7.48720826]
[1772025449729,7.70933822,1959.7,1959.1,6.21112012]
[1772025449938,7.65875212,1959.7,1959.1,7.48720493]
[1772025450246,7.70933822,1959.7,1959.1,6.21112012]
[1772025450932,7.70933822,1959.7,1959.1,7.48721014]
[1772025451112,7.70933822,1959.7,1959.1,7.48821014]
[1772025451320,0.002,1959.6,1959.1,7.48821014]
[1772025452067,7.70465754,1960.2,1959.6,6.4485811]
[1772025452068,6.38300691,1960.2,1959.6,6.4485811]
[1772025452334,7.70908546,1960.1,1959.2,6.4485811]
[1772025453021,6.38300691,1960.0,1959.2,6.4485811]
[1772025453228,6.38300691,1959.8,1959.2,6.4485811]
[1772025453839,1.32607855,1960.1,1959.3,7.724547]
[1772025454249,7.70908546,1960.1,1959.3,7.724547]
[1772025455943,7.65849936,1960.1,1959.3,7.724547]
[1772025456132,7.70908546,1960.1,1959.3,7.724547]
[1772025458111,1.27549245,1960.1,1959.5,6.4485811]
[1772025459628,1.27549245,1960.1,1959.3,5.0559659]
[1772025459629,7.65849936,1960.1,1959.3,11.504547]
[1772025459830,7.65858626,1959.9,1959.3,11.504547]
[1772025460346,6.38300691,1959.9,1959.3,11.504547]
[1772025460842,7.6585842,1959.9,1959.3,11.504547]
[1772025461142,6.38300691,1959.9,1959.3,11.504547]
[1772025461349,6.38300691,1959.9,1959.4,6.4485811]
[1772025463339,6.38300691,1960.1,1959.5,7.72441677]
[1772025464444,1.27542765,1960.2,1959.5,7.72441677]
[1772025464742,1.27542765,1960.2,1959.6,6.4485811]
[1772025464915,0.002,1960.0,1959.6,6.4485811]
[1772025465316,0.002,1960.0,1959.6,7.72430151]
[1772025469724,0.002,1960.0,1959.7,6.4485811]
[1772025469920,0.002,1960.3,1959.7,6.4485811]
[1772025470729,0.002,1960.3,1959.9,6.4485811]
[1772025471546,0.002,1960.3,1960.0,6.4485811]
[1772025473471,6.38500691,1960.3,1959.6,1.2757479]
[1772025473755,6.38500691,1960.3,1959.5,13.78136533]
[1772025473955,6.38500691,1960.3,1959.5,10.00136533]
[1772025474446,0.0505861,1960.2,1959.5,2.277]
[1772025474631,6.38300691,1960.1,1959.5,2.277]
[1772025475427,1.2755102,1960.0,1959.5,3.55283191]
[1772025475644,7.49779101,1960.0,1959.5,3.55283191]
[1772025476944,7.49779101,1960.0,1959.5,2.277]
[1772025477754,7.49779101,1960.0,1959.6,0.001]
[1772025479036,7.49966087,1960.2,1959.7,6.22567128]
[1772025479342,6.22428081,1960.2,1959.7,6.22567128]
[1772025479554,0.002,1960.2,1959.8,1.27564037]
[1772025479737,0.002,1960.2,1959.9,6.22567128]
[1772025481971,0.002,1960.3,1960.0,7.50118148]
[1772025482264,6.22428081,1960.5,1960.0,2.282]
[1772025483445,6.22228081,1960.3,1959.6,3.55872261]
[1772025483863,6.22228081,1960.3,1959.7,6.22567128]
[1772025484362,6.22228081,1960.1,1959.6,0.001]
[1772025486863,6.22228081,1959.9,1959.6,0.001]
[1772025487870,7.49766301,1960.2,1959.6,6.22667128]
[1772025488040,7.54824911,1960.2,1959.6,3.781]
[1772025490567,7.54824911,1960.2,1959.6,5.05676499]
[1772025490568,7.49766578,1960.2,1959.6,5.05676499]
[1772025490748,6.22228081,1960.1,1959.6,5.05676499]
[1772025491669,6.22228081,1960.1,1959.7,0.001]
[1772025492076,7.49773719,1960.1,1959.7,0.001]
[1772025493564,6.22228081,1959.9,1959.7,0.001]
[1772025496457,7.49786007,1959.9,1959.7,0.001]
[1772025498647,6.22228081,1959.9,1959.7,0.001]
[1772025500252,6.22228081,1959.9,1959.5,0.001]
[1772025500253,6.22228081,1959.7,1959.5,0.001]
[1772025500461,6.27286691,1959.9,1959.5,0.001]
[1772025500956,7.54844764,1959.9,1959.5,0.001]
[1772025501982,6.22428081,1960.2,1959.6,6.22567128]
[1772025502162,6.22228081,1960.1,1959.6,6.22567128]
[1772025503074,6.22228081,1960.1,1959.6,7.50139496]
[1772025504078,7.49773447,1960.1,1959.6,7.50139496]
[1772025504471,7.49773447,1960.1,1959.6,7.50239496]
[1772025504679,6.27286691,1960.1,1959.6,7.50239496]
[1772025504853,0.002,1959.8,1959.6,7.50239496]
[1772025506292,6.22428081,1960.1,1959.7,6.94440816]
[1772025506650,6.22428081,1960.1,1959.7,6.16233873]
[1772025507276,6.22428081,1960.1,1959.7,7.43798104]
[1772025508051,0.002,1960.1,1959.7,7.43798104]
[1772025508274,7.19834726,1960.1,1959.6,1.2767363]
[1772025508476,5.92289993,1960.1,1959.6,5.0567363]
[1772025509058,5.92289993,1960.1,1959.6,11.08099148]
[1772025514393,5.92289993,1960.1,1959.7,3.78]
[1772025515393,5.92289993,1960.1,1959.7,9.80425518]
[1772025515690,5.92289993,1960.1,1959.7,11.07991042]
[1772025517596,0.002,1960.0,1959.8,6.02425518]
[1772025517906,0.002,1960.1,1959.8,1.27561182]
[1772025518071,0.002,1960.3,1960.1,6.02425518]
[1772025518277,7.25448985,1960.3,1959.8,3.57963641]
[1772025518902,5.97916696,1960.3,1959.8,9.60389159]
[1772025519204,5.97916696,1960.3,1959.9,6.02425518]
[1772025519500,0.002,1960.3,1959.9,6.02425518]
[1772025519685,0.002,1960.3,1960.0,7.29976538]
[1772025521100,0.002,1960.3,1959.9,1.27557528]
[1772025521307,0.002,1960.7,1960.4,6.02425518]
[1772025521672,0.002,1961.0,1960.5,6.02425518]
[1772025522084,0.002,1961.0,1960.6,7.29937504]
[1772025522489,0.002,1961.0,1960.6,3.87936667]
[1772025522698,0.002,1961.0,1960.7,6.02425518]
[1772025523399,0.002,1961.1,1960.7,6.02425518]
[1772025523976,0.002,1961.1,1960.8,1.2749898]
[1772025524778,5.97916696,1961.1,1960.6,1.27509715]
[1772025525005,5.97916696,1961.1,1960.5,1.27514572]
[1772025525504,5.97916696,1961.1,1960.4,1.27521046]
[1772025525870,5.97716696,1960.9,1960.3,3.58426677]
[1772025526800,5.97716696,1960.9,1960.3,9.60852195]
[1772025527101,7.25396521,1961.1,1960.4,6.02425518]
[1772025527896,6.02975306,1961.1,1960.5,6.02425518]
[1772025528100,0.002,1961.1,1960.7,6.02425518]
[1772025530207,5.97916696,1961.1,1960.5,5.10047944]
[1772025530380,5.97916696,1961.1,1960.4,7.29947559]
[1772025530581,5.97716696,1960.9,1960.4,1.27522041]
[1772025532492,7.25209555,1960.9,1960.2,1.27532546]
[1772025532702,5.97716696,1960.7,1960.0,1.2755102]
[1772025533081,5.97716696,1960.7,1959.9,1.27554598]
[1772025533505,5.97716696,1960.7,1959.9,1.17554598]
[1772025534311,5.97716696,1960.7,1959.9,7.19980116]
[1772025534992,7.25228682,1960.6,1959.9,7.19980116]
[1772025535915,7.25228682,1960.6,1959.9,1.17554598]
[1772025536413,7.25228682,1960.6,1959.8,5.05659363]
[1772025536812,7.25228682,1960.6,1959.8,1.27659363]
[1772025537024,6.09582216,1960.5,1959.8,0.001]
[1772025539310,7.37105568,1960.5,1959.8,6.13330952]
[1772025540423,6.09582216,1960.5,1959.8,6.13330952]
[1772025540715,6.09582216,1960.5,1959.9,6.13230952]
[1772025540882,7.37100747,1960.5,1959.9,6.13230952]
[1772025541594,7.42159357,1960.5,1959.9,7.40785576]
[1772025542084,7.42159357,1960.5,1959.9,6.13230952]
[1772025542283,7.42159357,1960.5,1959.9,7.40788015]
[1772025542504,7.42159357,1960.5,1959.9,7.40888015]
[1772025542902,7.42159357,1960.5,1959.9,1.27657063]
[1772025543591,7.42159357,1960.5,1959.9,0.001]
[1772025545327,6.09582216,1960.3,1959.8,0.001]
[1772025545502,6.09582216,1960.1,1959.8,0.001]
[1772025547515,7.37132411,1960.1,1959.8,0.001]
[1772025549620,7.42191021,1960.1,1959.8,0.001]
[1772025550222,7.42191021,1960.1,1959.6,0.001]
[1772025554229,7.42191021,1960.1,1959.5,0.001]
[1772025555825,7.37132411,1960.1,1959.6,1.27677056]
[1772025556022,0.002,1960.0,1959.6,1.27677056]
[1772025556419,0.002,1960.0,1959.6,7.40908008]
[1772025557010,0.002,1960.3,1959.8,6.13230952]
[1772025557921,0.002,1960.3,1959.8,7.40790343]
[1772025558328,6.09782216,1960.3,1959.8,7.40790343]
[1772025558943,0.002,1960.3,1959.8,7.40790343]
[1772025559831,6.09782216,1960.3,1959.8,7.40790343]
[1772025560342,6.09582216,1960.1,1959.6,1.27675652]
[1772025562444,7.3712718,1960.1,1959.6,1.27675652]
[1772025562647,7.3712718,1960.1,1959.6,0.001]
[1772025562940,6.09582216,1959.9,1959.6,0.001]
[1772025563910,6.09582216,1959.9,1959.5,1.27453344]
[1772025565437,6.09582216,1959.9,1959.4,5.1045966]
[1772025565632,6.09582216,1959.9,1959.4,15.07959021]
[1772025568322,6.09582216,1959.9,1959.4,11.25189439]
[1772025568559,6.09582216,1959.9,1959.5,0.001]
[1772025570260,6.09582216,1959.9,1959.5,6.05450055]
[1772025571854,0.002,1960.0,1959.5,6.05450055]
[1772025572155,0.002,1960.0,1959.6,1.27577056]
[1772025572479,5.96855054,1960.0,1959.6,1.27577056]
[1772025574683,7.24406217,1960.0,1959.6,1.27577056]
[1772025574847,7.24406217,1960.0,1959.5,1.27683567]
[1772025575250,7.29464827,1960.0,1959.5,1.27683567]
[1772025578078,7.29464891,1960.0,1959.5,7.85182648]
[1772025578280,7.24406281,1960.0,1959.5,7.85182648]
[1772025578880,7.29464891,1960.0,1959.5,7.85182648]
[1772025579184,7.24406634,1960.0,1959.6,6.05350055]
[1772025580279,5.96655054,1959.8,1959.5,0.001]
[1772025581264,5.96655054,1959.8,1959.4,0.001]
[1772025581459,5.96655054,1959.8,1959.6,0.001]
[1772025581664,5.96655054,1959.6,1959.4,0.001]
[1772025582185,3.88100331,1959.8,1959.1,0.001]
[1772025582186,5.96655054,1959.4,1959.1,0.001]
[1772025582381,5.96655054,1959.4,1958.8,1.27728389]
[1772025583261,5.96655054,1959.4,1959.0,1.27715494]
[1772025583778,5.96655054,1959.4,1959.0,7.33065549]
[1772025584265,5.96655054,1959.4,1959.0,6.05450055]
[1772025584456,7.24245252,1959.4,1959.0,0.001]
[1772025585158,5.96655054,1959.4,1959.0,0.001]
[1772025585358,7.24245328,1959.4,1959.0,0.001]
[1772025588994,7.29303938,1959.4,1959.0,0.001]
[1772025593296,7.29303938,1959.4,1959.1,0.001]
[1772025594665,7.29303944,1959.4,1959.1,0.001]
[1772025594872,7.24245334,1959.4,1959.1,0.001]
[1772025595188,5.96655054,1959.3,1959.1,0.001]
[1772025596102,5.96655054,1959.3,1959.0,0.001]
[1772025596262,5.96655054,1959.3,1958.8,6.20644877]
[1772025596662,6.30726481,1959.1,1958.8,6.20644877]
[1772025597068,7.58328042,1959.3,1958.8,7.48273084]
[1772025597299,7.63386652,1959.3,1958.8,7.48273084]
[1772025598198,7.63386652,1959.3,1958.8,6.20644877]
[1772025600902,7.63386652,1959.3,1958.8,7.4827384]
[1772025601406,7.63386652,1959.3,1958.8,6.20644877]
[1772025602274,7.63386652,1959.3,1958.6,6.20544877]
[1772025602476,6.30726481,1959.2,1958.4,6.20544877]
[1772025602710,6.30726481,1959.2,1958.3,2.33]
[1772025602711,6.30726481,1958.9,1958.0,6.20544877]
[1772025602914,7.58362157,1958.7,1958.0,7.48221264]
[1772025603349,7.58362157,1958.7,1957.9,2.33]
[1772025603350,6.30726481,1958.5,1957.9,2.33]
[1772025603566,6.30726481,1958.1,1957.6,6.20544877]
[1772025604418,6.30726481,1958.1,1957.6,7.48252046]
[1772025605350,7.58401407,1958.1,1957.6,7.48252046]
[1772025605658,7.58401407,1958.1,1958.0,0.001]
[1772025605946,6.30726481,1958.1,1958.0,0.001]
[1772025606119,7.58401267,1958.1,1958.0,0.001]
[1772025606556,7.58401267,1958.1,1957.4,7.48264642]
[1772025606854,7.58401267,1958.1,1957.6,6.20544877]
[1772025606855,6.30726481,1958.1,1957.6,6.20544877]
[1772025607385,7.58401535,1958.1,1957.6,7.48250085]
[1772025607600,5.10599047,1958.5,1957.9,6.20544877]
[1772025607601,7.58383183,1958.4,1957.9,6.20544877]
[1772025608370,7.58383183,1958.4,1957.4,0.78336177]
[1772025608371,6.30726481,1958.1,1957.4,0.78336177]
[1772025608578,6.30726481,1958.1,1957.5,6.20544877]
[1772025608884,2.298,1958.3,1957.7,6.20544877]
[1772025608885,8.60526481,1958.3,1957.7,6.20544877]
[1772025609351,8.60526481,1958.3,1957.7,7.48245051]
[1772025609352,7.58394747,1958.2,1957.7,7.48245051]
[1772025609552,7.58394747,1958.2,1957.7,6.20544877]
[1772025609857,6.30726481,1958.2,1957.7,7.48245744]
[1772025610084,5.10635788,1958.4,1957.7,7.48245744]
[1772025610085,2.299,1958.5,1957.9,6.20544877]
[1772025610448,6.30726481,1958.4,1957.9,6.20544877]
[1772025611866,6.30726481,1958.4,1957.9,7.48226531]
[1772025612095,7.58382231,1958.4,1957.9,6.20544877]
[1772025612985,7.58382231,1958.4,1957.2,7.48276377]
[1772025612986,7.09062658,1958.0,1957.2,7.48276377]
[1772025613292,6.30726481,1958.0,1957.3,6.20544877]
[1772025613866,6.30726481,1958.2,1957.6,6.98881054]
[1772025614093,6.30726481,1958.1,1957.5,6.20544877]
[1772025614367,6.30726481,1958.1,1957.3,7.48271431]
[1772025615689,6.35785091,1958.1,1957.3,7.48271391]
[1772025615885,6.35785091,1958.1,1957.3,6.20544877]
[1772025616092,6.30726481,1957.9,1957.3,7.48271349]
[1772025616395,7.58406314,1958.1,1957.5,6.20544877]
[1772025616614,7.58406314,1958.1,1957.2,6.20544877]
[1772025616615,2.0601601,1958.1,1957.2,6.20544877]
[1772025616770,6.30726481,1957.8,1957.2,6.20544877]
[1772025618002,6.30726481,1957.6,1957.0,7.48290921]
[1772025618316,5.10717972,1958.1,1957.0,7.48290921]
[1772025618317,7.58407788,1958.0,1957.3,6.98881054]
[1772025618483,6.35785091,1957.9,1957.3,6.98881054]
[1772025618811,6.35785091,1957.9,1957.4,6.20644877]
[1772025619183,6.30726481,1957.9,1957.4,6.20644877]
[1772025620608,7.58415122,1957.9,1957.4,7.48360085]
[1772025620910,7.58415122,1957.9,1957.4,6.20644877]
[1772025621289,6.30726481,1957.7,1957.3,0.001]
[1772025622023,0.78336177,1957.6,1957.3,0.001]
[1772025622200,6.30726481,1957.5,1957.1,0.001]
[1772025622580,1.27720445,1957.4,1957.1,0.001]
[1772025622780,7.58431015,1957.7,1957.1,6.20644877]
[1772025624014,7.63489625,1957.7,1957.1,6.20644877]
[1772025625517,7.63489625,1957.7,1957.1,7.48383631]
[1772025626412,6.30726481,1957.7,1957.1,7.48383631]
[1772025626914,3.57898925,1957.8,1957.3,7.5808072]
[1772025627219,3.57898925,1957.8,1957.3,6.3035375]
[1772025627220,9.68226011,1957.8,1957.3,6.3035375]
[1772025627414,9.63167401,1957.8,1957.3,6.3035375]
[1772025627587,6.05268476,1957.7,1957.1,9.9138888]
[1772025627989,6.05268476,1957.7,1957.1,8.6365375]
[1772025628184,3.62957535,1957.8,1957.1,0.001]
[1772025628185,6.05268476,1957.5,1957.1,0.001]
[1772025629014,7.32988921,1957.4,1957.1,0.001]
[1772025629211,6.05268476,1957.4,1957.1,0.001]
[1772025629411,5.92089929,1957.6,1957.1,6.4369776]
[1772025629724,3.58905169,1957.7,1957.1,0.001]
[1772025629725,5.92089929,1957.5,1957.1,0.001]
[1772025630719,5.97148539,1957.5,1957.1,0.001]
[1772025631632,7.19810374,1957.4,1957.2,0.001]
[1772025631807,7.20010374,1957.4,1957.2,0.001]
[1772025632007,7.25068984,1957.4,1957.2,0.001]
[1772025633230,7.25068984,1957.4,1957.0,0.001]
[1772025633810,5.92089929,1957.3,1957.0,0.001]
[1772025636116,1.27733496,1957.2,1957.0,0.001]
[1772025636807,7.19823425,1957.2,1957.0,0.001]
[1772025638031,7.24882035,1957.2,1957.0,0.001]
[1772025639214,7.24882035,1957.2,1956.7,6.4359776]
[1772025640948,1.32792106,1957.2,1956.7,7.71363552]
[1772025641133,1.27733496,1957.2,1956.7,7.71363552]
[1772025641452,7.20013411,1957.4,1956.7,7.71363552]
[1772025641757,7.25072021,1957.4,1956.7,7.71363448]
[1772025643448,7.25072021,1957.4,1956.7,6.4359776]
[1772025643953,7.25072021,1957.4,1956.7,7.71363403]
[1772025644560,7.25072021,1957.4,1956.7,6.4359776]
[1772025644932,7.25072021,1957.4,1956.8,6.4369776]
[1772025645135,0.002,1957.1,1956.8,6.4369776]
[1772025645851,0.002,1957.1,1956.8,0.001]